bitfinex/quotes_ETHUSD_20220101
["timestamp","ask_amount","ask_price","bid_price","bid_amount"]
[1641031328115,2.54932552,3727.5,3727.4,2.70113684]
[1641031328354,4.75,3727.4,3727.0,0.07105319]
[1641031328557,0.67104,3727.2,3727.0,5.319e-05]
[1641031328759,2.34674745,3727.3,3727.1,5.27e-06]
[1641031328958,2.34674745,3727.3,3726.7,0.108]
[1641031328959,15.71,3727.0,3726.7,0.108]
[1641031329155,4.75,3727.1,3726.7,0.108]
[1641031329156,2.01359,3727.1,3726.7,0.108]
[1641031329354,2.01359,3727.1,3725.4,2.48439528]
[1641031329355,5.05,3727.0,3725.4,2.48439528]
[1641031329554,0.67112,3725.9,3725.2,0.40286197]
[1641031329755,0.67112,3725.9,3725.5,0.00738951]
[1641031330154,1.34223,3726.3,3725.5,0.00738951]
[1641031330756,0.67114,3725.8,3725.4,0.00795793]
[1641031331355,0.67114,3725.8,3724.6,3.51250532]
[1641031331558,0.67114,3725.8,3724.7,0.0119369]
[1641031332817,0.67114,3725.8,3725.2,0.95109571]
[1641031333015,1.57986478,3726.0,3725.2,1.55109571]
[1641031333216,0.67111,3726.0,3725.3,0.00852636]
[1641031333414,3.804,3726.5,3725.3,0.00852636]
[1641031333615,2.01362,3726.6,3725.3,1.00852636]
[1641031334014,2.01362,3726.6,3725.4,0.00795793]
[1641031334216,2.01362,3726.6,3725.9,0.9938131]
[1641031334217,0.67107,3726.2,3725.9,0.9938131]
[1641031334415,0.67107,3726.2,3725.4,0.03999053]
[1641031334614,0.67107,3726.2,3726.0,0.00454739]
[1641031334816,2.01362,3726.6,3726.0,0.00454739]
[1641031335216,0.67104,3726.4,3726.0,0.00454739]
[1641031335855,0.67104,3726.4,3725.6,0.00682109]
[1641031336256,0.67096,3726.9,3725.6,0.00682109]
[1641031337258,1.05189379,3726.8,3725.6,0.00682109]
[1641031338060,1.05189379,3726.8,3725.6,1.00682109]
[1641031338259,0.84855571,3726.2,3725.6,1.00682109]
[1641031338462,0.84855571,3726.2,3725.7,0.00625266]
[1641031339162,0.84855571,3726.2,3725.6,0.00682109]
[1641031340528,0.84855571,3726.2,3725.6,0.03885368]
[1641031340728,0.84855571,3726.2,3725.6,0.03203259]
[1641031340928,0.84855571,3726.2,3725.7,0.00625266]
[1641031342131,3.0716,3726.7,3725.7,0.00625266]
[1641031342731,3.0716,3726.7,3725.7,2.70625266]
[1641031342931,3.6744,3726.9,3725.8,1.0]
[1641031343132,0.836954,3726.7,3725.8,1.60568424]
[1641031343359,1.508044,3726.7,3725.9,0.00511581]
[1641031345861,0.836954,3726.7,3725.9,0.00511581]
[1641031347312,0.836954,3726.7,3725.9,0.03714497]
[1641031347714,0.836954,3726.7,3726.0,0.00454739]
[1641031349015,0.6711,3726.6,3726.0,0.00454739]
[1641031349315,0.836954,3726.7,3726.0,0.00454739]
[1641031350119,0.67113,3726.4,3726.0,0.00454739]
[1641031350760,0.00080436,3726.6,3726.0,0.00454739]
[1641031352061,0.00080436,3726.6,3726.0,0.79974739]
[1641031352261,0.00080436,3726.6,3726.0,1.09974739]
[1641031352459,0.00080436,3726.6,3726.1,0.00397897]
[1641031352659,0.00080436,3726.6,3726.4,0.82205009]
[1641031353059,0.00080436,3726.6,3726.5,0.00170527]
[1641031354723,0.00080436,3726.6,3726.2,0.94031504]
[1641031354928,0.00080436,3726.6,3726.5,0.00170527]
[1641031355124,0.00080436,3726.6,3726.3,0.30284212]
[1641031355423,0.00080436,3726.6,3726.4,0.0022737]
[1641031358265,0.00080436,3726.6,3726.4,0.03430137]
[1641031358664,0.00080436,3726.6,3726.5,0.00170527]
[1641031361174,0.00163279,3726.6,3726.5,0.00170527]
[1641031362908,0.00163279,3726.6,3726.5,2.70170527]
[1641031363107,0.00163279,3726.6,3726.5,4.00170527]
[1641031369267,0.00163279,3726.6,3726.5,2.70170527]
[1641031369511,0.00163279,3726.6,3726.5,4.00170527]
[1641031372319,0.00080436,3726.6,3726.5,4.00170527]
[1641031372921,0.00080436,3726.6,3726.5,6.77120454]
[1641031374576,0.00080436,3726.6,3726.5,10.27120454]
[1641031374776,0.00080436,3726.6,3726.5,10.94205454]
[1641031374976,0.00080436,3726.6,3726.5,26.65205454]
[1641031375177,0.00080436,3726.6,3726.5,14.01744132]
[1641031375579,0.00080436,3726.6,3726.5,11.54794205]
[1641031375782,0.00080436,3726.6,3726.5,8.47255527]
[1641031375978,0.00080436,3726.6,3726.5,7.43906992]
[1641031376178,0.00080436,3726.6,3726.5,4.97255527]
[1641031376380,0.00080436,3726.6,3726.5,7.41028982]
[1641031376681,0.00080436,3726.6,3726.5,4.97255527]
[1641031376880,0.00080436,3726.6,3726.5,4.00170527]
[1641031378812,0.00080436,3726.6,3726.5,5.01169743]
[1641031379512,0.00080436,3726.6,3726.5,4.00170527]
[1641031380315,0.00080436,3726.6,3726.5,4.97257527]
[1641031381956,0.00080436,3726.6,3726.5,5.87090622]
[1641031382855,0.9207497,3727.5,3726.5,5.87090622]
[1641031383057,0.9207497,3727.5,3726.6,1.0]
[1641031383261,0.00341054,3727.4,3726.7,0.67084]
[1641031383660,0.00284211,3727.3,3726.7,0.67084]
[1641031384061,0.00227369,3727.2,3726.7,0.67084]
[1641031384519,3.26029791,3728.4,3726.7,0.67084]
[1641031384520,0.00170527,3727.1,3726.7,0.67084]
[1641031384922,0.00113684,3727.0,3726.7,0.67084]
[1641031385323,0.0073895,3728.1,3726.7,1.00286323]
[1641031385523,0.01230057,3728.6,3728.5,0.7410713]
[1641031385726,6.28,3728.9,3728.5,1.1536847]
[1641031385922,6.28,3728.9,3728.5,1.4536847]
[1641031386125,6.28,3728.9,3728.6,0.06591743]
[1641031386324,0.1,3728.9,3728.6,0.73625533]
[1641031386522,0.1,3728.9,3728.7,0.67045]
[1641031386724,0.1,3728.9,3728.7,1.71476232]
[1641031386924,0.1,3728.9,3728.8,0.3]
[1641031387427,7.7388,3730.5,3728.8,5.05]
[1641031387428,7.64334739,3730.5,3728.8,5.05]
[1641031387723,0.07881393,3730.2,3729.6,0.67028]
[1641031388127,0.00682108,3730.1,3729.6,0.3]
[1641031388674,0.00625266,3730.0,3729.7,1.02312849]
[1641031389072,0.00568423,3729.9,3729.7,1.32312849]
[1641031389273,0.00568423,3729.9,3729.8,0.67025]
[1641031389473,0.97742824,3731.1,3729.8,0.67025]
[1641031389875,0.01193689,3731.0,3729.8,0.67025]
[1641031390075,0.81996687,3730.5,3729.6,1.0]
[1641031390275,0.81996687,3730.5,3729.5,1.34056]
[1641031390574,0.00852635,3730.4,3729.5,1.34056]
[1641031390772,0.00852635,3730.4,3729.6,0.3]
[1641031390973,0.00795793,3730.3,3729.6,0.3]
[1641031391375,0.0073895,3730.2,3729.6,0.33199735]
[1641031391773,0.00682108,3730.1,3729.6,0.33199735]
[1641031392229,0.00625266,3730.0,3729.7,0.67031]
[1641031392629,0.00568423,3729.9,3729.7,0.67031]
[1641031392830,0.00568423,3729.9,3729.6,0.33199735]
[1641031393028,0.00511581,3729.8,3729.6,1.33199735]
[1641031393229,0.00511581,3729.8,3729.6,0.33199735]
[1641031393531,0.00454739,3729.7,3729.6,0.33199735]
[1641031393732,0.00566416,3729.7,3729.6,0.33199735]
[1641031394128,0.00566416,3729.7,3729.6,3.03199735]
[1641031394332,0.00566416,3729.7,3729.6,4.03199735]
[1641031394732,0.00111677,3729.8,3729.6,4.03199735]
[1641031394933,0.07142232,3730.6,3729.6,4.03199735]
[1641031394934,0.07142232,3730.6,3729.7,1.0]
[1641031395333,0.00397896,3730.4,3729.7,1.0]
[1641031395768,0.00341054,3730.3,3729.7,1.0]
[1641031396164,0.00284211,3730.2,3729.7,1.0]
[1641031396562,0.07142232,3730.6,3729.7,1.0]
[1641031396563,0.00227369,3730.1,3729.7,1.0]
[1641031397063,0.00170527,3730.0,3729.7,1.0]
[1641031397465,0.00113684,3729.9,3729.7,1.0]
[1641031397665,0.00113684,3729.9,3729.8,0.67029]
[1641031397869,0.00568423,3730.7,3729.8,0.67029]
[1641031398068,0.00113684,3729.9,3729.7,1.0]
[1641031398270,0.00511581,3730.6,3729.7,1.0]
[1641031398468,3.9221204,3731.4,3729.7,1.6]
[1641031398469,0.00568423,3730.7,3729.7,1.6]
[1641031398668,3.9101,3731.4,3729.7,1.0]
[1641031398669,0.00454738,3730.5,3729.7,1.0]
[1641031398872,0.00511581,3730.6,3729.7,1.0]
[1641031399069,0.50909477,3731.3,3729.7,1.0]
[1641031399268,0.00454738,3730.5,3729.7,1.0]
[1641031399536,0.75410553,3730.7,3729.6,4.07249735]
[1641031399729,0.75410553,3730.7,3729.6,2.73199735]
[1641031400026,0.00511581,3730.6,3729.6,2.73199735]
[1641031400525,0.00454738,3730.5,3729.6,2.73199735]
[1641031400928,0.00511581,3730.6,3729.7,1.0]
[1641031401129,0.00511581,3730.6,3729.8,2.46815708]
[1641031401328,0.00454738,3730.5,3729.8,2.76815708]
[1641031401530,0.00454738,3730.5,3729.9,1.0]
[1641031401728,0.00909477,3731.3,3729.9,1.0]
[1641031401926,0.00909477,3731.3,3729.8,1.6402193]
[1641031402129,0.00852635,3731.2,3729.8,1.6402193]
[1641031402328,0.00852635,3731.2,3730.7,0.6701]
[1641031402527,0.00795793,3731.1,3730.7,1.5171]
[1641031402927,0.0073895,3731.0,3730.7,1.5171]
[1641031403363,0.00682108,3730.9,3730.7,1.5171]
[1641031403565,0.00682108,3730.9,3730.7,0.847]
[1641031403767,0.00625266,3730.8,3730.4,1.372181]
[1641031404170,0.00568423,3730.7,3730.4,1.372181]
[1641031404369,0.00653653,3730.7,3730.4,1.372181]
[1641031404569,0.00511581,3730.6,3730.4,1.672181]
[1641031404770,0.00511581,3730.6,3730.4,1.972181]
[1641031404972,0.0008523,3730.7,3730.4,2.972181]
[1641031404973,0.00454738,3730.5,3730.4,2.972181]
[1641031408923,0.00454738,3730.5,3730.4,1.631991]
[1641031409123,0.00454738,3730.5,3730.4,0.631991]
[1641031409326,0.00454738,3730.5,3730.4,1.631991]
[1641031409723,0.00454738,3730.5,3730.4,0.631991]
[1641031409923,0.00454738,3730.5,3730.4,1.631991]
[1641031410124,0.00454738,3730.5,3730.4,0.631991]
[1641031414071,9.968e-05,3730.7,3730.4,10.55014808]
[1641031414275,0.0008523,3730.8,3730.5,5.42002]
[1641031414276,0.00015198,3730.8,3730.5,5.42002]
[1641031414516,0.00015198,3730.8,3730.5,7.69011]
[1641031414718,0.00113685,3730.7,3730.5,7.75602743]
[1641031414918,0.07142034,3731.4,3730.5,7.75602743]
[1641031414919,0.07142034,3731.4,3730.7,4.75]
[1641031415119,0.07142034,3731.4,3730.8,1.0]
[1641031415320,0.00341054,3731.3,3730.9,0.97392164]
[1641031415519,0.00341054,3731.3,3730.9,1.27392164]
[1641031415718,0.00284212,3731.2,3730.9,1.27392164]
[1641031416018,0.0022737,3731.1,3731.0,17.0497688]
[1641031416421,0.0022737,3731.1,3731.0,18.0497688]
[1641031417023,0.0022737,3731.1,3731.0,21.33474361]
[1641031417222,3.6833,3732.9,3731.1,4.75]
[1641031417422,3.6833,3732.9,3731.8,0.66986]
[1641031417623,0.07141885,3732.0,3731.8,1.61576]
[1641031418264,0.07141885,3732.0,3731.8,0.9459]
[1641031418462,0.07141885,3732.0,3731.8,1.76798789]
[1641031419362,0.00966319,3732.8,3731.8,1.76798789]
[1641031419767,0.00909477,3732.7,3731.8,1.76798789]
[1641031419968,0.00909477,3732.7,3731.8,2.43789789]
[1641031420168,0.00852635,3732.6,3731.8,1.76798789]
[1641031420669,0.00795792,3732.5,3731.8,1.76798789]
[1641031421067,0.0073895,3732.4,3731.8,1.76798789]
[1641031421269,0.0073895,3732.4,3731.8,0.9459]
[1641031421570,0.00682108,3732.3,3731.1,3.26503868]
[1641031421771,0.00682108,3732.3,3731.0,1.0]
[1641031422019,0.01286314,3732.7,3730.6,1.37211195]
[1641031422020,0.00625265,3732.2,3730.6,1.37211195]
[1641031422225,0.00625265,3732.2,3731.8,0.0319783]
[1641031422422,0.75412398,3732.1,3731.8,0.0319783]
[1641031422822,0.00511581,3732.0,3731.8,0.0319783]
[1641031423124,0.00454738,3731.9,3731.8,0.0319783]
[1641031423524,0.00511581,3731.9,3731.8,0.0319783]
[1641031423729,0.00511581,3731.9,3731.1,0.07141674]
[1641031423925,0.01743435,3731.9,3731.1,0.07141674]
[1641031424124,0.00397896,3731.8,3731.1,0.07141674]
[1641031424422,0.00341054,3731.7,3731.1,0.07141674]
[1641031424627,0.99801114,3731.3,3731.1,0.07141674]
[1641031424831,0.95900388,3731.9,3731.8,1.02832832]
[1641031425027,1.25900388,3731.9,3731.8,1.02832832]
[1641031425227,1.26014072,3731.9,3731.8,1.02832832]
[1641031425426,1.26097616,3731.9,3731.8,1.02832832]
[1641031427969,2.56097616,3731.9,3731.8,1.02832832]
[1641031428771,0.00197228,3731.9,3731.8,1.02832832]
[1641031430425,15.71197228,3731.9,3731.8,1.02832832]
[1641031430624,16.98730682,3731.9,3731.8,1.02832832]
[1641031431226,1.27730682,3731.9,3731.8,1.02832832]
[1641031433406,0.97730682,3731.9,3731.8,1.02832832]
[1641031434611,0.97730682,3731.9,3731.8,1.06030952]
[1641031435013,0.00197228,3731.9,3731.8,1.06030952]
[1641031435813,0.00197228,3731.9,3731.8,1.36430952]
[1641031436213,0.00197228,3731.9,3731.8,2.32307469]
[1641031437313,0.00197228,3731.9,3731.8,1.36430952]
[1641031437516,0.00197228,3731.9,3731.8,1.06030952]
[1641031438418,1.29210228,3732.9,3731.8,1.06030952]
[1641031438618,0.90841011,3733.0,3731.8,1.06030952]
[1641031438821,0.00511581,3732.8,3731.8,1.06030952]
[1641031439219,0.67008,3732.5,3731.8,1.06030952]
[1641031439419,0.00454739,3732.7,3731.8,1.06030952]
[1641031439619,0.00284212,3732.4,3731.8,1.06030952]
[1641031439819,0.00397897,3732.6,3731.8,1.06030952]
[1641031440019,0.0022737,3732.3,3731.8,1.06030952]
[1641031440222,0.67009,3732.4,3731.8,1.06030952]
[1641031440422,0.00170527,3732.2,3731.8,1.06030952]
[1641031440622,0.0022737,3732.3,3731.8,1.06030952]
[1641031440865,0.00113685,3732.1,3731.8,1.06030952]
[1641031441072,0.00170527,3732.2,3731.8,1.06030952]
[1641031441267,0.00454739,3732.7,3731.8,1.06030952]
[1641031441465,2.38568212,3732.9,3731.8,1.06030952]
[1641031441466,0.00113685,3732.1,3731.8,1.06030952]
[1641031441665,0.00397897,3732.6,3731.8,1.06030952]
[1641031442065,0.00341054,3732.5,3731.8,1.06030952]
[1641031442264,0.67012,3732.2,3731.8,1.06030952]
[1641031442465,2.4153937,3732.1,3731.8,1.06030952]
[1641031442667,0.00113685,3732.1,3731.8,1.06030952]
[1641031442867,2.70127746,3732.4,3731.8,1.06030952]
[1641031443269,1.04775131,3732.3,3731.8,1.06030952]
[1641031443567,0.67019,3732.1,3731.8,1.06030952]
[1641031444168,2.46018982,3732.0,3731.8,1.02840952]
[1641031444366,0.97019,3732.1,3731.8,1.02840952]
[1641031444367,1.00712051,3732.1,3731.8,1.02840952]
[1641031444619,16.68019,3732.1,3731.8,1.02840952]
[1641031445421,1.0121925,3732.0,3731.8,1.06030853]
[1641031446420,7.43681418,3731.9,3731.8,1.06030853]
[1641031446621,2.93681418,3731.9,3731.8,1.06030853]
[1641031448874,3.23681418,3731.9,3731.8,1.02832832]
[1641031449075,4.75,3731.8,3731.2,0.00284212]
[1641031449278,15.71,3731.4,3731.2,0.00284212]
[1641031449476,15.71,3731.4,3730.7,0.07141662]
[1641031449477,15.71,3731.4,3730.8,0.00625265]
[1641031450076,1.01365024,3731.3,3730.8,0.00625265]
[1641031450277,0.67041,3731.1,3730.8,0.00625265]
[1641031450680,15.71,3731.0,3730.8,0.00625265]
[1641031451278,2.56941221,3730.9,3730.8,0.00625265]
[1641031451480,3.23987221,3730.9,3730.8,0.00625265]
[1641031451777,3.23987221,3730.9,3730.2,0.0096632]
[1641031451778,0.87380087,3730.4,3730.2,0.0096632]
[1641031452237,2.56941221,3730.9,3730.2,0.0096632]
[1641031452434,0.67036,3730.7,3730.2,0.0096632]
[1641031453137,2.34357055,3731.1,3730.2,0.0096632]
[1641031453343,0.86229421,3730.9,3730.2,0.0096632]
[1641031453739,2.333935,3730.8,3729.9,0.01136847]
[1641031454138,2.333935,3730.8,3729.2,1.01263881]
[1641031454139,2.333935,3730.8,3729.3,0.01477901]
[1641031454739,0.97351583,3730.3,3729.3,0.01477901]
[1641031454939,2.29765752,3730.2,3729.3,0.01477901]
[1641031455138,0.67046,3730.1,3729.3,0.01477901]
[1641031455340,2.30780529,3730.2,3729.3,0.01477901]
[1641031455341,2.43730823,3730.2,3729.3,0.01477901]
[1641031455763,0.97351583,3730.3,3729.3,0.01477901]
[1641031455976,2.34120041,3730.2,3729.3,0.01477901]
[1641031456169,0.6705,3730.0,3729.3,0.01477901]
[1641031456370,0.97351583,3730.3,3728.9,1.0659174]
[1641031456371,0.97351583,3730.3,3728.9,1.0829701]
[1641031456572,2.29647067,3730.2,3729.0,0.01648428]
[1641031456769,0.97351583,3730.3,3729.0,0.01648428]
[1641031456971,2.3074855,3730.2,3729.0,0.01648428]
[1641031457171,2.32597169,3730.2,3729.0,0.01648428]
[1641031457371,0.97351583,3730.3,3729.0,0.01648428]
[1641031457573,2.35629425,3730.2,3729.0,0.01648428]
[1641031457771,2.31960497,3730.2,3729.0,0.01648428]
[1641031457976,2.2949781,3730.2,3729.0,0.01648428]
[1641031458274,2.28263497,3730.2,3729.0,0.01648428]
[1641031458474,0.97351583,3730.3,3729.0,0.01648428]
[1641031458673,2.99760987,3730.2,3729.0,0.01648428]
[1641031459073,2.35192776,3730.4,3729.0,0.01648428]
[1641031459274,2.39116892,3730.6,3729.2,0.01291556]
[1641031459512,2.33624623,3730.6,3729.2,0.01291556]
[1641031459715,2.33624623,3730.6,3729.3,0.01477901]
[1641031460016,2.99765835,3730.6,3729.3,0.01477901]
[1641031460218,0.96351994,3730.3,3729.3,0.01477901]
[1641031460416,2.32302845,3730.2,3729.3,0.01477901]
[1641031460619,0.96351994,3730.3,3729.3,0.01477901]
[1641031461024,0.67045,3730.2,3729.3,0.01477901]
[1641031461222,0.67045,3730.2,3729.0,0.01648428]
[1641031462422,0.96351994,3730.3,3729.0,0.01648428]
[1641031463258,2.35397361,3730.2,3729.0,0.01648428]
[1641031463669,0.96351994,3730.3,3729.0,0.01648428]
[1641031463866,2.22469949,3730.2,3729.0,0.68690428]
[1641031464067,2.22469949,3730.2,3729.0,0.01648428]
[1641031464268,0.96351994,3730.3,3729.1,0.01591585]
[1641031464468,0.96351994,3730.3,3729.0,0.01648428]
[1641031464771,3.6611,3730.7,3729.0,0.01648428]
[1641031465370,3.6611,3730.7,3729.0,2.61648428]
[1641031465570,3.6611,3730.7,3729.1,1.0]
[1641031465769,0.67041,3730.5,3729.1,1.01591585]
[1641031465969,0.67041,3730.5,3729.2,0.01534743]
[1641031466670,0.8425979,3730.2,3729.2,0.01534743]
[1641031467314,0.8425979,3730.2,3729.2,0.68572743]
[1641031467513,4.33147,3730.7,3729.2,0.69845535]
[1641031467712,4.33147,3730.7,3729.3,0.01477901]
[1641031468725,0.999026,3730.3,3729.3,0.01477901]
[1641031470519,4.33148,3730.7,3729.3,0.68515901]
[1641031470965,4.33148,3730.7,3729.4,0.01421058]
[1641031471570,1.02378194,3730.5,3729.4,0.01421058]
[1641031473975,1.69418194,3730.5,3729.4,0.01421058]
[1641031475720,1.69418194,3730.5,3729.3,0.01477901]
[1641031475919,1.02378194,3730.5,3729.3,0.01477901]
[1641031477523,1.02378194,3730.5,3729.3,0.68513901]
[1641031477720,0.76533435,3729.9,3729.3,0.01477901]
[1641031477924,0.76533435,3729.9,3729.4,0.01421058]
[1641031478264,0.76533435,3729.9,3729.1,0.01591585]
[1641031478465,2.4581772,3729.8,3729.1,0.01591585]
[1641031478666,2.4581772,3729.8,3728.5,3.57338895]
[1641031478667,15.71,3729.5,3728.5,3.57338895]
[1641031478865,0.7606626,3728.7,3728.5,3.57338895]
[1641031479065,3.0065,3729.5,3728.6,0.00284212]
[1641031479268,3.73351054,3729.7,3728.6,0.00284212]
[1641031479669,0.07142493,3730.0,3728.6,0.00284212]
[1641031479670,0.67061,3729.5,3728.6,0.00284212]
[1641031479872,0.00284211,3729.6,3728.6,0.00284212]
[1641031479873,0.00284211,3729.6,3729.4,0.01258396]
[1641031480076,0.07142493,3730.0,3729.4,0.01258396]
[1641031480273,0.07142493,3730.0,3729.4,0.67037]
[1641031480472,0.00454738,3729.9,3729.4,0.67037]
[1641031480873,0.00397896,3729.8,3729.4,0.67037]
[1641031481272,0.00341054,3729.7,3729.4,0.67037]
[1641031481674,0.00284211,3729.6,3729.4,0.67037]
[1641031482118,0.00227369,3729.5,3729.4,0.67037]
[1641031485427,0.00227369,3729.5,3729.4,3.27037]
[1641031485625,0.00227369,3729.5,3729.4,4.27037]
[1641031485865,0.00227369,3729.5,3729.4,3.27037]
[1641031486665,0.00227369,3729.5,3729.4,0.67037]
[1641031487264,0.00227369,3729.5,3729.4,0.97037]
[1641031487468,0.00227369,3729.5,3729.4,1.86020191]
[1641031487667,0.00227369,3729.5,3729.4,2.16020191]
[1641031488271,0.00227369,3729.5,3729.4,2.59710191]
[1641031488465,0.00227369,3729.5,3729.4,5.84710191]
[1641031488667,0.00227369,3729.5,3729.4,6.84710191]
[1641031489066,0.00227369,3729.5,3729.4,3.59710191]
[1641031489536,0.00227369,3729.5,3729.4,3.16020191]
[1641031491138,0.00227369,3729.5,3729.4,6.67239079]
[1641031491340,0.00227369,3729.5,3729.4,22.38239079]
[1641031491639,0.00227369,3729.5,3729.4,6.67239079]
[1641031493773,0.00227369,3729.5,3729.4,6.66020191]
[1641031494169,0.00227369,3729.5,3729.4,5.77037]
[1641031494772,0.00227369,3729.5,3729.4,2.27037]
[1641031495976,0.00227369,3729.5,3729.4,1.67037]
[1641031496175,0.00227369,3729.5,3729.4,0.67037]
[1641031498015,0.00227369,3729.5,3729.1,0.3]
[1641031498216,0.00227369,3729.5,3729.4,3.5]
[1641031498415,0.67042,3730.4,3729.0,1.6]
[1641031498817,0.00170527,3729.4,3729.0,0.6]
[1641031499018,0.00170527,3729.4,3728.9,1.43751934]
[1641031499217,0.00113684,3729.3,3728.9,1.43751934]
[1641031499419,0.00113684,3729.3,3728.9,0.67041]
[1641031499621,2.38137482,3730.0,3728.8,1.3]
[1641031499820,2.38137482,3730.0,3728.6,6.10344631]
[1641031499821,2.68137482,3730.0,3728.6,2.99894631]
[1641031500020,0.00454738,3729.9,3728.9,0.00113685]
[1641031500223,0.00454738,3729.9,3728.5,0.57728476]
[1641031500224,1.00454738,3729.9,3728.7,0.0022737]
[1641031500420,2.47583106,3729.8,3728.7,0.0022737]
[1641031500622,2.77583106,3729.8,3728.7,0.0022737]
[1641031500866,0.67072,3729.2,3728.7,0.0022737]
[1641031501166,0.82569185,3729.1,3728.7,0.0022737]
[1641031501967,0.67077,3728.9,3728.7,0.0022737]
[1641031502370,5.80071968,3728.8,3728.7,0.0022737]
[1641031502573,2.45071968,3728.8,3728.7,0.0022737]
[1641031503473,0.67077,3728.9,3728.7,0.0022737]
[1641031504274,3.08131754,3728.9,3728.7,0.0022737]
[1641031504533,0.67077,3728.9,3728.7,0.0022737]
[1641031505037,2.35194882,3728.8,3728.7,0.0022737]
[1641031505237,0.67077,3728.9,3728.7,0.0022737]
[1641031513021,16.68077,3728.9,3728.7,0.0022737]
[1641031513221,16.68077,3728.9,3728.5,0.57728476]
[1641031513222,4.7,3728.8,3728.5,0.57728476]
[1641031513420,0.67089,3728.7,3728.5,0.57728476]
[1641031513622,2.27089,3728.7,3728.5,0.57728476]
[1641031516477,5.56277,3728.6,3728.5,0.57728476]
[1641031516679,3.01277,3728.6,3728.5,0.57728476]
[1641031516878,3.01277,3728.6,3728.5,0.5784216]
[1641031517279,0.5784216,3728.5,3727.9,0.00454739]
[1641031517583,0.67099,3728.2,3727.9,0.00454739]
[1641031518080,16.98099,3728.2,3727.9,0.00454739]
[1641031518280,5.57968189,3728.1,3727.8,0.07142493]
[1641031518484,8.59397874,3728.1,3727.8,0.07142493]
[1641031518680,15.71,3728.0,3727.8,0.07142493]
[1641031519080,5.7,3727.9,3727.8,0.07142493]
[1641031519281,0.67105,3727.3,3726.8,6.18]
[1641031519727,0.67105,3727.3,3726.9,0.00568423]
[1641031520326,0.67109,3727.1,3726.9,0.00568423]
[1641031520826,0.67109,3727.1,3726.0,0.01080004]
[1641031521429,0.97109,3727.1,3726.0,0.01080004]
[1641031521625,0.6711,3726.7,3726.0,0.01080004]
[1641031521826,0.92405666,3726.5,3726.0,0.01080004]
[1641031522326,0.92405666,3726.5,3725.8,0.01193689]
[1641031523026,1.59519666,3726.5,3725.8,0.01193689]
[1641031523471,1.59519666,3726.5,3725.7,0.01250531]
[1641031523674,1.04030243,3725.9,3725.7,0.01250531]
[1641031524174,0.67128,3725.8,3725.7,0.01250531]
[1641031524572,1.04030243,3725.9,3725.7,0.01250531]
[1641031524774,0.03611922,3726.9,3725.7,0.01250531]
[1641031524974,3.9049,3726.8,3725.7,0.01250531]
[1641031525173,0.67117,3726.4,3725.7,0.01250531]
[1641031525380,4.2049,3726.8,3725.7,0.01250531]
[1641031525873,3.2335,3727.1,3725.7,0.01250531]
[1641031526073,3.2335,3727.1,3725.7,0.02493784]
[1641031526280,3.2335,3727.1,3725.7,1.02493784]
[1641031526575,3.2335,3727.1,3725.8,0.01193689]
[1641031526775,3.6111,3727.6,3726.2,0.75508841]
[1641031526776,0.8897741,3727.3,3726.2,0.75508841]
[1641031527024,0.8897741,3727.3,3725.8,0.07785432]
[1641031527219,0.8897741,3727.3,3725.7,1.74643253]
[1641031527220,0.8897741,3727.3,3726.3,0.00909477]
[1641031527420,0.8897741,3727.3,3725.9,0.01136846]
[1641031527620,0.8897741,3727.3,3725.8,0.01193689]
[1641031528625,0.8897741,3727.3,3725.9,0.8908597]
[1641031528832,0.8897741,3727.3,3725.9,1.1908597]
[1641031529026,0.8897741,3727.3,3726.0,0.01080004]
[1641031529226,3.28666854,3727.3,3726.0,0.01080004]
[1641031529425,0.8897741,3727.3,3726.0,0.01080004]
[1641031529827,0.8897741,3727.3,3726.0,0.31080004]
[1641031530025,3.26315609,3727.3,3725.8,0.01193689]
[1641031530225,0.8897741,3727.3,3726.1,0.01023162]
[1641031530426,3.27709277,3727.3,3725.8,0.01193689]
[1641031530630,3.27640646,3727.3,3725.8,0.01193689]
[1641031530867,3.28732942,3727.3,3725.8,0.79551129]
[1641031531067,0.8897741,3727.3,3725.8,0.79551129]
[1641031531268,0.8897741,3727.3,3725.9,0.01136846]
[1641031531470,3.31529116,3727.3,3725.9,0.01136846]
[1641031531767,3.09342195,3727.2,3725.9,0.01136846]
[1641031532170,3.09342195,3727.2,3725.8,0.01193689]
[1641031532778,0.81328295,3726.3,3725.8,0.01193689]
[1641031533276,0.81328295,3726.3,3725.5,0.07160866]
[1641031533277,0.81328295,3726.3,3725.6,0.01307374]
[1641031535933,0.78611168,3725.7,3725.6,0.01307374]
[1641031537333,2.34251,3726.2,3725.6,0.01307374]
[1641031537534,7.5966,3726.4,3725.6,0.01307374]
[1641031537933,8.26775,3726.4,3725.6,0.01307374]
[1641031538134,7.5966,3726.4,3725.6,0.01307374]
[1641031538370,0.89282821,3726.2,3725.6,0.01307374]
[1641031539068,0.07161202,3726.5,3725.6,0.01307374]
[1641031539370,3.88739984,3726.7,3725.6,0.01307374]
[1641031539371,3.852,3726.7,3725.6,0.01307374]
[1641031539575,3.852,3726.7,3725.9,6.18]
[1641031539871,3.3221,3726.9,3726.0,0.01080004]
[1641031540071,3.3221,3726.9,3726.0,1.01080004]
[1641031540471,3.41418855,3727.1,3726.1,0.01023162]
[1641031540774,0.79288844,3727.0,3726.1,0.01023162]
[1641031541374,0.67102,3727.1,3726.1,0.01023162]
[1641031541572,5.10141964,3727.5,3726.1,0.01023162]
[1641031542044,2.74314855,3727.5,3726.4,0.01228116]
[1641031542232,2.74314855,3727.5,3726.5,0.67083]
[1641031542431,2.74314855,3727.5,3726.5,0.67878792]
[1641031542633,2.74314855,3727.6,3726.6,0.80019751]
[1641031542933,2.74314855,3727.6,3726.7,0.00682108]
[1641031543332,2.74314855,3727.6,3726.5,0.00795792]
[1641031543934,0.96062374,3727.2,3726.5,0.00795792]
[1641031546469,0.96062374,3727.2,3726.3,0.00909477]
[1641031546870,0.96062374,3727.2,3726.2,0.30966319]
[1641031547074,0.96062374,3727.2,3726.3,0.00909477]
[1641031547673,0.96062374,3727.2,3726.2,0.30966319]
[1641031547871,0.96062374,3727.2,3726.3,0.00909477]
[1641031548374,0.96062374,3727.2,3726.2,0.30966319]
[1641031548672,0.96062374,3727.2,3726.3,0.00909477]
[1641031549373,0.96062374,3727.2,3726.2,0.30966319]
[1641031549635,0.96062374,3727.2,3726.3,0.00909477]
[1641031550234,0.67102,3727.1,3726.2,0.00966319]
[1641031550835,0.96062374,3727.2,3726.1,0.31023162]
[1641031551035,0.96062374,3727.2,3726.1,0.01023162]
[1641031551236,0.96062374,3727.2,3726.2,0.00966319]
[1641031551440,0.67101,3727.1,3726.1,0.01023162]